fUSD/lending_fUSD_20240210
["ID","MTS","AMOUNT","RATE_DAILY","PERIOD"]
[313692446,1707587347199,-586.63,0.00040547,30]
[313692447,1707587347232,-1575.17,0.00040547,30]
[313692448,1707587347266,-500.0,0.00040547,30]
[313692449,1707587347299,-500.0,0.00040547,30]
[313692450,1707587347332,-2197.66,0.00040547,30]
[313692451,1707587347366,-849.0,0.00040547,30]
[313692452,1707587347400,-500.0,0.00040547,30]
[313692453,1707587347433,-529.49,0.00040547,30]
[313692454,1707587347466,-500.0,0.00040547,30]
[313692455,1707587347499,-2142.16,0.00040547,30]
[313692456,1707587347531,-1257.96,0.00040547,30]
[313692457,1707587347564,-847.82,0.00040547,30]
[313692458,1707587347596,-500.0,0.00040547,30]
[313692459,1707587347630,-500.0,0.00040547,30]
[313692460,1707587347668,-465.29865577,0.00040547,30]
[313692461,1707587347711,-500.0,0.00040547,30]
[313692462,1707587347748,-587.75,0.00040547,30]
[313692463,1707587347787,-1504.28,0.00040547,30]
[313692464,1707587347821,-773.57,0.00040547,30]
[313692465,1707587347856,-500.0,0.00040547,30]
[313692466,1707587347889,-1348.64,0.00040547,30]
[313692467,1707587347921,-1079.05,0.00040547,30]
[313692468,1707587347954,-872.64,0.00040547,30]
[313692469,1707587347985,-500.0,0.00040547,30]
[313692470,1707587348020,-500.0,0.00040547,30]
[313692471,1707587348052,-1396.29,0.00040547,30]
[313692472,1707587348085,-500.0,0.00040547,30]
[313692473,1707587348118,-500.0,0.00040547,30]
[313692474,1707587348153,-500.0,0.00040547,30]
[313692475,1707587348191,-1241.2,0.00040547,30]
[313692476,1707587348227,-500.0,0.00040547,30]
[313692477,1707587348264,-695.42,0.00040547,30]
[313692478,1707587348299,-4903.15,0.00040547,30]
[313692479,1707587348333,-500.0,0.00040547,30]
[313692480,1707587348369,-514.73,0.00040547,30]
[313692481,1707587348405,-500.0,0.00040547,30]
[313692482,1707587348441,-3083.4,0.00040547,30]
[313692483,1707587348623,-500.0,0.00040547,30]
[313692484,1707587348660,-500.0,0.00040547,30]
[313692485,1707587348693,-855.61,0.00040547,30]
[313692486,1707587348726,-527.2,0.00040547,30]
[313692487,1707587348758,-500.0,0.00040547,30]
[313692488,1707587348790,-500.0,0.00040547,30]
[313692489,1707587348822,-500.0,0.00040547,30]
[313692490,1707587348855,-500.0,0.00040547,30]
[313692491,1707587348887,-500.0,0.00040547,30]
[313692492,1707587348919,-500.0,0.00040547,30]
[313692493,1707587348951,-500.0,0.00040547,30]
[313692494,1707587348983,-500.0,0.00040547,30]
[313692495,1707587349015,-537.38,0.00040547,30]
[313692496,1707587349047,-500.0,0.00040547,30]
[313692497,1707587349081,-500.0,0.00040547,30]
[313692498,1707587349115,-289.64909504,0.00040547,30]
[313692499,1707587349152,-940.17,0.00040547,30]
[313692500,1707587349195,-2058.09,0.00040547,30]
[313692501,1707587349229,-533.26,0.00040547,30]
[313692502,1707587349262,-500.0,0.00040547,30]
[313692503,1707587349297,-500.0,0.00040547,30]
[313692504,1707587349330,-462.46707173,0.00040547,30]
[313692505,1707587349366,-507.56,0.00040547,30]
[313692506,1707587349402,-500.0,0.00040547,30]
[313692507,1707587349437,-500.0,0.00040547,30]
[313692508,1707587349472,-653.17,0.00040547,30]
[313692509,1707587349507,-500.0,0.00040547,30]
[313692510,1707587349543,-1566.47,0.00040547,30]
[313692511,1707587349578,-500.0,0.00040547,30]
[313692512,1707587349616,-500.0,0.00040547,30]
[313692513,1707587349652,-500.0,0.00040547,30]
[313692514,1707587349686,-695.9,0.00040547,30]
[313692515,1707587349720,-639.84,0.00040547,30]
[313692516,1707587349754,-500.0,0.00040547,30]
[313692517,1707587349786,-500.0,0.00040547,30]
[313692518,1707587349821,-500.0,0.00040547,30]
[313692519,1707587349856,-500.0,0.00040547,30]
[313692520,1707587349894,-384.41,0.00040547,30]
[313692521,1707587349931,-500.0,0.00040547,30]
[313692522,1707587349967,-1431.68,0.00040547,30]
[313692523,1707587350003,-1000.0,0.00040547,120]
[313692524,1707587350036,-500.0,0.00040547,30]
[313692525,1707587350069,-523.41,0.00040547,30]
[313692526,1707587350105,-1209.67,0.00040547,30]
[313692527,1707587350139,-727.64,0.00040547,30]
[313692528,1707587350175,-500.0,0.00040547,30]
[313692529,1707587350212,-1695.73,0.00040547,30]
[313692530,1707587350249,-500.0,0.00040547,30]
[313692531,1707587350286,-500.0,0.00040547,30]
[313692532,1707587350320,-500.0,0.00040547,30]
[313692533,1707587350357,-500.0,0.00040547,30]
[313692534,1707587350390,-636.9,0.00040547,30]
[313692535,1707587350424,-552.79,0.00040547,30]
[313692536,1707587350457,-822.03,0.00040547,30]
[313692537,1707587350489,-969.79,0.00040547,30]
[313692538,1707587350523,-500.0,0.00040547,30]
[313692539,1707587350557,-298.32269156,0.00040547,30]
[313692540,1707587350590,-500.0,0.00040547,30]
[313692541,1707587350622,-500.0,0.00040547,30]
[313692542,1707587350655,-519.84,0.00040547,30]
[313692543,1707587350689,-574.94,0.00040547,30]
[313692544,1707587350723,-520.2,0.00040547,30]
[313692545,1707587350756,-726.91,0.00040547,30]
[313692546,1707587350790,-500.0,0.00040547,30]
[313692547,1707587350822,-7027.12,0.0004065,60]
[313692548,1707587350855,-200.0,0.000408,30]
[313692549,1707587350888,-1084.73,0.00040821,30]
[313692550,1707587350919,-500.0,0.00040821,30]
[313692551,1707587350953,-700.22,0.00040821,30]
[313692552,1707587350985,-500.0,0.00040821,30]
[313692553,1707587351017,-500.0,0.00040821,30]
[313692554,1707587351049,-743.57,0.00040821,30]
[313692555,1707587351082,-591.06309933,0.00040821,30]
[313692556,1707587351114,-794.2,0.00040821,30]
[313692557,1707587351150,-500.0,0.00040821,30]
[313692558,1707587351185,-500.0,0.00040821,30]
[313692559,1707587351220,-533.56,0.00040821,30]
[313692560,1707587351256,-500.0,0.00040821,30]
[313692561,1707587351292,-500.0,0.00040821,30]
[313692562,1707587351328,-513.21,0.00040821,30]
[313692563,1707587351363,-506.34,0.00040821,30]
[313692564,1707587351399,-500.0,0.00040821,30]
[313692565,1707587351439,-500.0,0.00040821,30]
[313692566,1707587351473,-543.5,0.00040821,30]
[313692567,1707587351506,-500.0,0.00040821,30]
[313692568,1707587351538,-500.0,0.00040821,30]
[313692569,1707587351570,-500.0,0.00040821,30]
[313692570,1707587351603,-500.0,0.00040821,30]
[313692571,1707587351635,-643.45,0.00040821,30]
[313692572,1707587351669,-594.35,0.00040821,30]
[313692573,1707587351702,-500.0,0.00040821,30]
[313692574,1707587351735,-500.0,0.00040821,30]
[313692575,1707587351767,-500.0,0.00040821,30]
[313692576,1707587351800,-500.0,0.00040821,30]
[313692577,1707587351833,-500.0,0.00040821,30]
[313692578,1707587351866,-500.0,0.00040821,30]
[313692579,1707587351899,-636.08,0.00040821,30]
[313692580,1707587351933,-500.0,0.00040821,30]
[313692581,1707587351966,-537.62,0.00040821,30]
[313692582,1707587352000,-506.82,0.00040821,30]
[313692583,1707587352033,-500.0,0.00040821,30]
[313692584,1707587352068,-500.0,0.00040821,30]
[313692585,1707587352101,-500.0,0.00040821,30]
[313692586,1707587352135,-500.0,0.00040821,30]
[313692587,1707587352326,-500.0,0.00040821,30]
[313692588,1707587352362,-500.0,0.00040821,30]
[313692589,1707587352397,-500.0,0.00040821,30]
[313692590,1707587352432,-500.0,0.00040821,30]
[313692591,1707587352464,-500.0,0.00040821,30]
[313692592,1707587352498,-500.0,0.00040821,30]
[313692593,1707587352531,-424.0727987,0.00040821,30]
[313692594,1707587352569,-1343.72,0.00040821,30]
[313692595,1707587352601,-500.0,0.00040821,30]
[313692596,1707587352637,-500.0,0.00040821,30]
[313692597,1707587352671,-630.33,0.00040821,30]
[313692598,1707587352705,-1359.44,0.00040821,30]
[313692599,1707587352740,-617.86,0.00040821,30]
[313692600,1707587352771,-500.0,0.00040821,30]
[313692601,1707587352803,-500.0,0.00040821,30]
[313692602,1707587352836,-849.56,0.00040821,30]
[313692603,1707587352870,-1189.34,0.00040821,30]
[313692604,1707587352902,-515.6,0.00040821,30]
[313692605,1707587352935,-500.0,0.00040821,30]
[313692606,1707587352968,-731.92,0.00040821,30]
[313692607,1707587353001,-500.0,0.00040821,30]
[313692608,1707587353033,-500.0,0.00040821,30]
[313692609,1707587353066,-500.0,0.00040821,30]
[313692610,1707587353099,-525.58,0.00040821,30]
[313692611,1707587353133,-977.73,0.00040821,30]
[313692612,1707587353166,-500.0,0.00040821,30]
[313692613,1707587353203,-561.13,0.00040821,30]
[313692614,1707587353240,-1026.02,0.00040821,30]
[313692615,1707587353273,-500.0,0.00040821,30]
[313692616,1707587353306,-1242.56,0.00040821,30]
[313692617,1707587353341,-645.83,0.00040821,30]
[313692618,1707587353377,-500.0,0.00040821,30]
[313692619,1707587353415,-500.0,0.00040821,30]
[313692620,1707587353449,-500.0,0.00040821,30]
[313692621,1707587353483,-873.15,0.00040821,30]
[313692622,1707587353516,-500.0,0.00040821,30]
[313692623,1707587353548,-529.55,0.00040821,30]
[313692624,1707587353580,-779.81,0.00040821,30]
[313692625,1707587353613,-1056.2,0.00040821,30]
[313692626,1707587353647,-500.0,0.00040821,30]
[313692627,1707587353680,-519.82,0.00040821,30]
[313692628,1707587353715,-678.81,0.00040821,30]
[313692629,1707587353748,-500.0,0.00040821,30]
[313692630,1707587353780,-705.9,0.00040821,30]
[313692631,1707587353813,-1052.93,0.00040821,30]
[313692632,1707587353848,-500.0,0.00040821,30]
[313692633,1707587353882,-684.62,0.00040821,30]
[313692634,1707587353917,-1004.11,0.00040821,30]
[313692635,1707587353957,-711.92,0.00040821,30]
[313692636,1707587353990,-500.0,0.00040821,30]
[313692637,1707587354023,-667.08,0.00040821,30]
[313692638,1707587354055,-754.28,0.00040821,30]
[313692639,1707587354088,-500.0,0.00040821,30]
[313692640,1707587354122,-500.0,0.00040821,30]
[313692641,1707587354155,-509.63,0.00040821,30]
[313692642,1707587354188,-1382.71,0.00040821,30]
[313692643,1707587354222,-1447.85,0.00040821,30]
[313692644,1707587354255,-1223.13,0.00040821,30]
[313692645,1707587354287,-611.01,0.00040821,30]
[313692646,1707587354320,-969.91,0.00040821,30]
[313692647,1707587354351,-1057.09,0.00040821,30]
[313692648,1707587354384,-672.89,0.00040821,30]
[313692649,1707587354418,-250.0,0.00040821,30]
[313692650,1707587354452,-253.58536375,0.00040821,30]
[313692651,1707587354484,-1517.8,0.00040821,30]
[313692652,1707587354516,-1316.97,0.00040821,30]
[313692653,1707587354548,-738.23,0.00040821,30]
[313692654,1707587354580,-500.0,0.00040821,30]
[313692655,1707587354614,-1631.07,0.00040821,30]
[313692656,1707587354645,-500.0,0.00040821,30]
[313692657,1707587354678,-706.87,0.00040821,30]
[313692658,1707587354711,-765.85,0.00040821,30]
[313692659,1707587354744,-1109.61,0.00040821,30]
[313692660,1707587354776,-1493.22,0.00040821,30]
[313692661,1707587354811,-1173.55,0.00040821,30]
[313692662,1707587354848,-514.5,0.00040821,30]
[313692663,1707587354882,-500.0,0.00040821,30]
[313692664,1707587354915,-1076.65,0.00040821,30]
[313692665,1707587354947,-1126.72,0.00040821,30]
[313692666,1707587354980,-500.0,0.00040821,30]
[313692667,1707587355012,-500.0,0.00040821,30]
[313692668,1707587355043,-1151.29,0.00040821,30]
[313692669,1707587355077,-1633.0,0.00040821,30]
[313692670,1707587355108,-500.0,0.00040821,30]
[313692671,1707587355141,-500.0,0.00040821,30]
[313692672,1707587355174,-1429.03,0.00040821,30]
[313692673,1707587355208,-623.04,0.00040821,30]
[313692674,1707587355241,-500.0,0.00040821,30]
[313692675,1707587355273,-500.0,0.00040821,30]
[313692676,1707587355306,-500.0,0.00040821,30]
[313692677,1707587355343,-1193.5,0.00040821,30]
[313692678,1707587355377,-1288.88,0.00040821,30]
[313692679,1707587355417,-500.0,0.00040821,30]
[313692680,1707587355452,-1073.46,0.00040821,30]
[313692681,1707587355491,-1221.03,0.00040821,30]
[313692682,1707587355526,-436.06505565,0.00040821,30]
[313692683,1707587355559,-500.0,0.00040821,30]
[313692684,1707587355591,-1296.34,0.00040821,30]
[313692685,1707587355623,-500.0,0.00040821,30]
[313692686,1707587355656,-677.17,0.00040821,30]
[313692687,1707587355688,-1153.81,0.00040821,30]
[313692688,1707587355720,-984.72,0.00040821,30]
[313692689,1707587355751,-500.0,0.00040821,30]
[313692690,1707587355784,-1897.56,0.00040821,30]
[313692691,1707587355964,-555.2,0.00040821,30]
[313692692,1707587355997,-500.0,0.00040821,30]
[313692693,1707587356044,-542.42,0.00040821,30]
[313692694,1707587356077,-500.0,0.00040821,30]
[313692695,1707587356113,-573.6,0.00040821,30]
[313692696,1707587356146,-500.0,0.00040821,30]
[313692697,1707587356179,-500.0,0.00040821,30]
[313692698,1707587356212,-500.0,0.00040821,30]
[313692699,1707587356246,-1609.58,0.00040821,30]
[313692700,1707587356279,-1423.85,0.00040821,30]
[313692701,1707587356313,-500.0,0.00040821,30]
[313692702,1707587356353,-1220.89,0.00040821,30]
[313692703,1707587356394,-500.0,0.00040821,30]
[313692704,1707587356438,-500.0,0.00040821,30]
[313692705,1707587356479,-627.76,0.00040821,30]
[313692706,1707587356516,-586.63,0.00040821,30]
[313692707,1707587356550,-1575.17,0.00040821,30]
[313692708,1707587356583,-500.0,0.00040821,30]
[313692709,1707587356618,-422.44936709,0.00040821,30]
[313692710,1707587356653,-2197.66,0.00040821,30]
[313692711,1707587356688,-849.0,0.00040821,30]
[313692712,1707587356724,-500.0,0.00040821,30]
[313692713,1707587356759,-529.49,0.00040821,30]
[313692714,1707587356793,-500.0,0.00040821,30]
[313692715,1707587356828,-2142.16,0.00040821,30]
[313692716,1707587356865,-1257.96,0.00040821,30]
[313692717,1707587356898,-847.82,0.00040821,30]
[313692718,1707587356931,-500.0,0.00040821,30]
[313692719,1707587356964,-500.0,0.00040821,30]
[313692720,1707587356997,-500.0,0.00040821,30]
[313692721,1707587357030,-587.75,0.00040821,30]
[313692722,1707587357063,-1504.28,0.00040821,30]
[313692723,1707587357097,-773.57,0.00040821,30]
[313692724,1707587357129,-500.0,0.00040821,30]
[313692725,1707587357162,-1348.64,0.00040821,30]
[313692726,1707587357202,-1079.05,0.00040821,30]
[313692727,1707587357236,-872.64,0.00040821,30]
[313692728,1707587357269,-500.0,0.00040821,30]
[313692729,1707587357301,-500.0,0.00040821,30]
[313692730,1707587357333,-1396.29,0.00040821,30]
[313692731,1707587357366,-500.0,0.00040821,30]
[313692732,1707587357399,-500.0,0.00040821,30]
[313692733,1707587357432,-500.0,0.00040821,30]
[313692734,1707587357466,-1241.2,0.00040821,30]
[313692735,1707587357499,-500.0,0.00040821,30]
[313692736,1707587357532,-695.42,0.00040821,30]
[313692737,1707587357566,-4903.15,0.00040821,30]
[313692738,1707587357600,-201.97332118,0.00040821,30]
[313692739,1707587357632,-514.73,0.00040821,30]
[313692740,1707587357665,-500.0,0.00040821,30]
[313692741,1707587357699,-3083.4,0.00040821,30]
[313692742,1707587357732,-500.0,0.00040821,30]
[313692743,1707587357764,-500.0,0.00040821,30]
[313692744,1707587357797,-855.61,0.00040821,30]
[313692745,1707587357828,-527.2,0.00040821,30]
[313692746,1707587357861,-500.0,0.00040821,30]
[313692747,1707587357893,-500.0,0.00040821,30]
[313692748,1707587357924,-500.0,0.00040821,30]
[313692749,1707587357956,-500.0,0.00040821,30]
[313692750,1707587357988,-500.0,0.00040821,30]
[313692751,1707587358020,-500.0,0.00040821,30]
[313692752,1707587358051,-500.0,0.00040821,30]
[313692753,1707587358083,-483.7,0.00040821,30]
[313692754,1707587358117,-537.38,0.00040821,30]
[313692755,1707587358149,-500.0,0.00040821,30]
[313692756,1707587358182,-500.0,0.00040821,30]
[313692757,1707587358216,-940.17,0.00040821,30]
[313692758,1707587358249,-2058.09,0.00040821,30]
[313692759,1707587358283,-533.26,0.00040821,30]
[313692760,1707587358318,-500.0,0.00040821,30]
[313692761,1707587358353,-640.36523179,0.00040821,30]
[313692762,1707587358386,-507.56,0.00040821,30]
[313692763,1707587358418,-500.0,0.00040821,30]
[313692764,1707587358451,-500.0,0.00040821,30]
[313692765,1707587358482,-653.17,0.00040821,30]
[313692766,1707587358515,-1566.47,0.00040821,30]
[313692767,1707587358548,-500.0,0.00040821,30]
[313692768,1707587358579,-500.0,0.00040821,30]
[313692769,1707587358611,-500.0,0.00040821,30]
[313692770,1707587358644,-500.0,0.00040821,30]
[313692771,1707587358676,-695.9,0.00040821,30]
[313692772,1707587358708,-639.84,0.00040821,30]
[313692773,1707587358739,-500.0,0.00040821,30]
[313692774,1707587358771,-500.0,0.00040821,30]
[313692775,1707587358806,-500.0,0.00040821,30]
[313692776,1707587358837,-500.0,0.00040821,30]
[313692777,1707587358870,-500.0,0.00040821,30]
[313692778,1707587358903,-1431.68,0.00040821,30]
[313692779,1707587358933,-1000.0,0.00040821,120]
[313692780,1707587358965,-500.0,0.00040821,30]
[313692781,1707587358996,-523.41,0.00040821,30]
[313692782,1707587359028,-1209.67,0.00040821,30]
[313692783,1707587359061,-727.64,0.00040821,30]
[313692784,1707587359094,-500.0,0.00040821,30]
[313692785,1707587359126,-1695.73,0.00040821,30]
[313692786,1707587359157,-500.0,0.00040821,30]
[313692787,1707587359190,-500.0,0.00040821,30]
[313692788,1707587359222,-500.0,0.00040821,30]
[313692789,1707587359254,-500.0,0.00040821,30]
[313692790,1707587359287,-636.9,0.00040821,30]
[313692791,1707587359319,-552.79,0.00040821,30]
[313692792,1707587359353,-822.03,0.00040821,30]
[313692793,1707587359385,-969.79,0.00040821,30]
[313692794,1707587359416,-500.0,0.00040821,30]
[313692795,1707587359597,-500.0,0.00040821,30]
[313692796,1707587359634,-500.0,0.00040821,30]
[313692797,1707587359667,-519.84,0.00040821,30]
[313692798,1707587359702,-574.94,0.00040821,30]
[313692799,1707587359736,-520.2,0.00040821,30]
[313692800,1707587359775,-726.91,0.00040821,30]
[313692801,1707587359808,-500.0,0.00040821,30]
[313692802,1707587359839,-1000.0,0.000409,30]
[313692803,1707587359871,-1000.0,0.000409,30]
[313692804,1707587359904,-1000.0,0.000409,30]
[313692805,1707587359935,-1185120.3192999,0.00040957,30]
[313692806,1707587359966,-1311.0,0.0004098,120]
[313692807,1707587359998,-5000.0,0.00041,120]
[313692808,1707587360030,-5000.0,0.00041,120]
[313692809,1707587360063,-300.0,0.00041,42]
[313692810,1707587360095,-8734.09854958,0.00041,30]
[313692811,1707587360128,-20000.0,0.00041,30]
[313692812,1707587360165,-7520.67665961,0.00041,60]
[313692815,1707587424116,2721.47,0.00021319,2]
[313692831,1707587432632,-531.56028822,0.00022051,2]
[313692833,1707587432644,-399.12738743,0.00022051,2]
[313692836,1707587432655,-362.1013399,0.00022051,2]
[313692840,1707587432688,-31.28555719,0.00022051,2]
[313692842,1707587432698,-296.97766061,0.00022052,2]
[313692844,1707587432707,-155.0,0.00022053,2]
[313692846,1707587432716,-158.77601474,0.00022054,2]
[313692859,1707587434124,-1279.88,0.00038356,30]
[313692860,1707587434169,-898.34,0.00038356,30]
[313692861,1707587434206,-1568.74,0.00038356,30]
[313692862,1707587434242,-500.0,0.00038356,30]
[313692863,1707587434280,-500.0,0.00038356,30]
[313692864,1707587434321,-198.28,0.00038356,30]
[313692865,1707587434358,-605.13,0.00038356,30]
[313692866,1707587434397,-739.5,0.00038356,30]
[313692867,1707587434434,-500.0,0.00038356,30]
[313692868,1707587434471,-500.0,0.00038356,30]
[313692869,1707587434525,-1667.99,0.00038356,30]
[313692870,1707587434560,-500.0,0.00038356,30]
[313692871,1707587434592,-500.0,0.00038356,30]
[313692872,1707587434626,-500.0,0.00038356,30]
[313692873,1707587434659,-500.0,0.00038356,30]
[313692874,1707587434951,-1541.7,0.00038356,30]
[313692875,1707587434988,-500.0,0.00038356,30]
[313692876,1707587435021,-500.0,0.00038356,30]
[313692877,1707587435053,-500.0,0.00038356,30]
[313692878,1707587435084,-500.0,0.00038356,30]
[313692879,1707587435115,-500.0,0.00038356,30]
[313692880,1707587435148,-500.0,0.00038356,30]
[313692881,1707587435180,-500.0,0.00038356,30]
[313692882,1707587435212,-500.0,0.00038356,30]
[313692883,1707587435243,-505.63926045,0.00038356,30]
[313692884,1707587435275,-500.0,0.00038356,30]
[313692885,1707587435307,-500.0,0.00038356,30]
[313692886,1707587435342,-500.0,0.00038356,30]
[313692887,1707587435380,-500.0,0.00038356,30]
[313692888,1707587435415,-500.0,0.00038356,30]
[313692889,1707587435449,-594.19,0.00038356,30]
[313692890,1707587435484,-500.0,0.00038356,30]
[313692891,1707587435525,-500.0,0.00038356,30]
[313692892,1707587435561,-798.83,0.00038356,30]
[313692893,1707587435595,-500.0,0.00038356,30]
[313692894,1707587435628,-500.0,0.00038356,30]
[313692895,1707587435665,-500.0,0.00038356,30]
[313692896,1707587435698,-1555.02,0.00038356,30]
[313692897,1707587435733,-1157.65,0.00038356,30]
[313692898,1707587435767,-605.34574127,0.00038356,30]
[313692899,1707587435799,-626.18,0.00038356,30]
[313692900,1707587435834,-571.81,0.00038356,30]
[313692901,1707587435870,-565.78,0.00038356,30]
[313692902,1707587435905,-393.05,0.00038356,30]
[313692903,1707587435938,-500.0,0.00038356,30]
[313692904,1707587435971,-500.0,0.00038356,30]
[313692905,1707587436004,-500.0,0.00038356,30]
[313692906,1707587436037,-757.98,0.00038356,30]
[313692907,1707587436070,-500.0,0.00038356,30]
[313692908,1707587436102,-500.0,0.00038356,30]
[313692909,1707587436136,-1688.53,0.00038356,30]
[313692910,1707587436169,-500.0,0.00038356,30]
[313692911,1707587436205,-500.0,0.00038356,30]
[313692912,1707587436239,-1874.32,0.00038356,30]
[313692913,1707587436276,-500.0,0.00038356,30]
[313692914,1707587436312,-500.0,0.00038356,30]
[313692915,1707587436353,-500.0,0.00038356,30]
[313692916,1707587436389,-500.0,0.00038356,30]
[313692917,1707587436425,-2851.71,0.00038356,30]
[313692918,1707587436459,-500.0,0.00038356,30]
[313692919,1707587436492,-756.2,0.00038356,30]
[313692920,1707587436525,-500.0,0.00038356,30]
[313692921,1707587436557,-1086.17,0.00038356,30]
[313692922,1707587436589,-5736.87,0.00038356,30]
[313692923,1707587436621,-500.0,0.00038356,30]
[313692924,1707587436654,-500.0,0.00038356,30]
[313692925,1707587436686,-163.91,0.00038356,30]
[313692926,1707587436718,-500.0,0.00038356,30]
[313692927,1707587436750,-500.0,0.00038356,30]
[313692928,1707587436782,-500.0,0.00038356,30]
[313692929,1707587436813,-500.0,0.00038356,30]
[313692930,1707587436845,-500.0,0.00038356,30]
[313692931,1707587436878,-500.0,0.00038356,30]
[313692932,1707587436911,-500.0,0.00038356,30]
[313692933,1707587436943,-673.05,0.00038356,30]
[313692934,1707587436975,-806.65,0.00038356,30]
[313692935,1707587437006,-500.0,0.00038356,30]
[313692936,1707587437039,-942.13,0.00038356,30]
[313692937,1707587437070,-2426.36,0.00038356,30]
[313692938,1707587437100,-500.0,0.00038356,30]
[313692939,1707587437131,-500.0,0.00038356,30]
[313692940,1707587437170,-500.0,0.00038356,30]
[313692941,1707587437208,-1128.55,0.00038356,30]
[313692942,1707587437239,-500.0,0.00038356,30]
[313692943,1707587437271,-787.47,0.00038356,30]
[313692944,1707587437301,-500.0,0.00038356,30]
[313692945,1707587437334,-575.33,0.00038356,30]
[313692946,1707587437366,-500.0,0.00038356,30]
[313692947,1707587437398,-500.0,0.00038356,30]
[313692948,1707587437432,-658.85,0.00038356,30]
[313692949,1707587437466,-693.78,0.00038356,30]
[313692950,1707587437501,-426.73405972,0.00038356,30]
[313692951,1707587437532,-500.0,0.00038356,30]
[313692952,1707587437563,-500.0,0.00038356,30]
[313692953,1707587437595,-500.0,0.00038356,30]
[313692954,1707587437626,-500.0,0.00038356,30]
[313692955,1707587437656,-500.0,0.00038356,30]
[313692956,1707587437688,-735.58,0.00038356,30]
[313692957,1707587437720,-500.0,0.00038356,30]
[313692958,1707587437753,-500.0,0.00038356,30]
[313692959,1707587437785,-500.0,0.00038356,30]
[313692960,1707587437817,-500.0,0.0003863,30]
[313692961,1707587437848,-1279.88,0.0003863,30]
[313692962,1707587437880,-898.34,0.0003863,30]
[313692963,1707587437911,-1568.74,0.0003863,30]
[313692964,1707587437943,-500.0,0.0003863,30]
[313692965,1707587437975,-605.13,0.0003863,30]
[313692966,1707587438006,-739.5,0.0003863,30]
[313692967,1707587438037,-511.55408203,0.0003863,30]
[313692968,1707587438067,-500.0,0.0003863,30]
[313692969,1707587438100,-1667.99,0.0003863,30]
[313692972,1707587438133,-500.0,0.0003863,30]
[313692974,1707587438167,-500.0,0.0003863,30]
[313692975,1707587438200,-1541.7,0.0003863,30]
[313692976,1707587438234,-500.0,0.0003863,30]
[313692977,1707587438267,-500.0,0.0003863,30]
[313692978,1707587438299,-500.0,0.0003863,30]
[313692979,1707587438491,-566.82303441,0.0003863,30]
[313692980,1707587438525,-500.0,0.0003863,30]
[313692981,1707587438559,-466.7659558,0.0003863,30]
[313692982,1707587438592,-500.0,0.0003863,30]
[313692984,1707587438626,-594.19,0.0003863,30]
[313692988,1707587438660,-500.0,0.0003863,30]
[313692992,1707587438694,-798.83,0.0003863,30]
[313692997,1707587438727,-500.0,0.0003863,30]